bitfinex/quotes_SOLUSD_20240808
["timestamp","ask_amount","ask_price","bid_price","bid_amount"]
[1723148331862,6.4012,156.23,156.18,6.4027]
[1723148332948,6.4005,156.24,156.19,6.4024]
[1723148333158,20.0,156.23,156.19,6.4024]
[1723148333451,26.4008,156.23,156.19,6.4024]
[1723148336280,16.0033,156.22,156.16,16.5121]
[1723148336494,21.60073371,156.21,156.16,16.5121]
[1723148336656,21.60073371,156.21,156.09,32.0316]
[1723148336657,6.4037,156.16,156.12,15.9122]
[1723148337356,6.4037,156.16,156.12,22.3174]
[1723148337561,6.4033,156.17,156.13,6.4047]
[1723148338297,6.4029,156.18,156.13,6.4047]
[1723148338767,6.4025,156.19,156.13,16.0115]
[1723148338951,20.0,156.23,156.18,6.4028]
[1723148339154,6.4012,156.22,156.18,6.4028]
[1723148341373,6.4009,156.23,156.18,6.4028]
[1723148341751,20.0,156.22,156.18,6.4028]
[1723148342474,20.0,156.22,156.19,6.4023]
[1723148342786,16.8135803,156.27,156.21,6.4015]
[1723148342787,6.4001,156.25,156.21,6.4015]
[1723148343368,6.4001,156.25,156.2,6.4019]
[1723148343983,20.0,156.24,156.21,16.0037]
[1723148344163,0.8150803,156.27,156.21,16.0037]
[1723148344164,20.0,156.25,156.21,16.0037]
[1723148344685,7.2145803,156.27,156.21,16.0037]
[1723148344867,7.2145803,156.27,156.23,6.4005]
[1723148345453,7.2145803,156.27,156.22,6.401]
[1723148345654,6.3996,156.26,156.22,6.401]
[1723148346785,7.2142803,156.27,156.22,6.401]
[1723148348361,0.8150803,156.27,156.23,7.68039681]
[1723148348560,20.8150803,156.27,156.24,1.27981733]
[1723148348861,20.8150803,156.27,156.23,6.4005]
[1723148349258,7.2141803,156.27,156.24,1.27982064]
[1723148349565,6.3996,156.26,156.22,6.4011]
[1723148349771,6.3996,156.26,156.21,22.4052]
[1723148350086,6.3996,156.26,156.22,45.0]
[1723148350465,0.8150803,156.27,156.2,6.4017]
[1723148350667,6.4001,156.25,156.21,45.0]
[1723148351465,20.8150803,156.27,156.19,21.7892]
[1723148351681,6.401,156.23,156.19,15.3869]
[1723148351880,6.4019,156.21,156.19,15.3869]
[1723148352265,6.4013,156.22,156.19,15.3869]
[1723148352468,6.4019,156.21,156.19,15.3869]
[1723148352667,6.4013,156.22,156.19,15.3869]
[1723148352872,6.4011,156.23,156.19,15.3869]
[1723148353188,6.4012,156.22,156.19,15.3869]
[1723148353581,6.4008,156.23,156.19,15.3869]
[1723148353785,6.4005,156.24,156.19,21.789]
[1723148353994,6.4005,156.24,156.2,45.0]
[1723148354173,6.401,156.23,156.19,21.789]
[1723148354489,6.4005,156.24,156.19,21.789]
[1723148356574,20.8150803,156.27,156.21,6.4015]
[1723148356575,6.3998,156.26,156.21,6.4015]
[1723148356795,20.8150803,156.27,156.21,6.4015]
[1723148357090,0.8150803,156.27,156.21,6.4015]
[1723148358087,0.8150803,156.27,156.19,21.789]
[1723148358293,6.4011,156.23,156.19,21.7893]
[1723148359492,6.4017,156.21,156.19,15.3869]
[1723148359694,6.4013,156.22,156.19,15.3869]
[1723148359894,6.4017,156.21,156.19,15.3869]
[1723148360102,6.4013,156.22,156.19,15.3869]
[1723148361101,6.4017,156.21,156.19,15.3869]
[1723148362196,6.4013,156.22,156.19,15.3869]
[1723148362685,16.0014,156.24,156.15,6.404]
[1723148362886,16.0014,156.24,156.14,38.09457303]
[1723148362887,21.60046048,156.23,156.14,37.8164]
[1723148364105,6.4029,156.18,156.14,37.8164]
[1723148364884,16.0034,156.22,156.14,31.412]
[1723148365185,21.60068209,156.21,156.14,31.412]
[1723148365511,6.4029,156.18,156.14,37.8163]
[1723148365716,6.4025,156.19,156.15,6.404]
[1723148366703,6.4029,156.18,156.14,31.412]
[1723148366875,20.0,156.21,156.14,31.412]
[1723148367082,6.4033,156.17,156.14,31.412]
[1723148367300,6.4033,156.17,156.14,15.4014]
[1723148368412,6.4029,156.18,156.14,21.8058]
[1723148368587,6.404,156.15,156.14,15.4014]
[1723148368897,16.0076,156.18,156.1,22.6757]
[1723148369108,6.4041,156.15,156.11,6.4056]
[1723148371399,6.4045,156.14,156.1,32.2849]
[1723148371700,6.405,156.13,156.1,16.2698]
[1723148373088,6.4045,156.14,156.1,22.6758]
[1723148373428,6.4041,156.15,156.11,6.4056]
[1723148374075,6.4038,156.16,156.12,6.4053]
[1723148374279,20.0,156.15,156.12,6.4053]
[1723148374890,6.4038,156.16,156.12,6.4053]
[1723148375609,2.52542763,156.21,156.13,43.5813]
[1723148375910,16.0015,156.24,156.13,16.0113]
[1723148376121,6.4028,156.18,156.14,6.4043]
[1723148376415,6.4032,156.17,156.13,22.4161]
[1723148376784,16.0032,156.22,156.14,6.4045]
[1723148376785,6.4029,156.18,156.14,6.4045]
[1723148378219,6.4029,156.18,156.13,49.986]
[1723148379009,16.0032,156.22,156.14,46.28057395]
[1723148379190,6.4025,156.19,156.15,6.4038]
[1723148379397,6.4033,156.17,156.14,45.0]
[1723148379581,6.4033,156.17,156.13,16.0113]
[1723148379783,6.4033,156.17,156.14,27.57]
[1723148380999,6.403,156.18,156.14,27.57]
[1723148381199,6.403,156.18,156.14,33.9743]
[1723148382793,6.4025,156.19,156.15,6.404]
[1723148383001,16.0032,156.22,156.15,16.01]
[1723148383312,6.4023,156.2,156.16,51.4036]
[1723148383493,6.4024,156.19,156.16,45.0]
[1723148383814,6.4024,156.19,156.15,22.4139]
[1723148383992,6.4024,156.19,156.15,49.9839]
[1723148384191,6.4024,156.19,156.15,22.4139]
[1723148384898,6.4024,156.19,156.16,15.0346]
[1723148385097,6.4021,156.2,156.17,45.0]
[1723148385289,6.4021,156.2,156.16,21.4382]
[1723148386392,6.4024,156.19,156.16,15.0346]
[1723148386590,20.0,156.21,156.16,15.0346]
[1723148386591,6.403,156.18,156.16,15.0346]
[1723148389111,6.4025,156.19,156.16,15.0346]
[1723148391510,20.0,156.21,156.18,6.4028]
[1723148391818,6.401,156.23,156.19,7.68260617]
[1723148391993,6.4012,156.22,156.19,1.28030617]
[1723148392812,0.8150803,156.27,156.19,79.9158]
[1723148392813,18.91,156.24,156.19,79.9158]
[1723148392999,0.8150803,156.27,156.2,7.68172336]
[1723148393202,6.4004,156.24,156.2,6.4017]
[1723148393403,6.4004,156.24,156.21,45.0]
[1723148393822,6.4001,156.25,156.21,51.4015]
[1723148394002,0.8150803,156.27,156.24,27.56]
[1723148394202,0.8150803,156.27,156.22,22.8589]
[1723148394203,0.8150803,156.27,156.25,73.83962575]
[1723148394397,0.8150803,156.27,156.25,80.23932575]
[1723148394591,0.8150803,156.27,156.26,6.3995]
[1723148395209,0.8150803,156.27,156.26,78.9595]
[1723148395414,0.8150803,156.27,156.26,80.23899845]
[1723148396519,0.8150803,156.27,156.26,95.52059845]
[1723148396818,16.8029803,156.43,156.26,95.52059845]
[1723148396819,15.9852,156.4,156.31,6.3974]
[1723148397021,15.9852,156.4,156.32,45.0]
[1723148397195,16.7968803,156.43,156.32,60.9923]
[1723148397397,6.3945,156.39,156.33,1.27794356]
[1723148397602,6.3945,156.39,156.35,6.3958]
[1723148397821,6.3943,156.39,156.34,6.3962]
[1723148398056,6.395,156.38,156.33,6.3964]
[1723148398335,6.395,156.38,156.34,45.0]
[1723148398534,6.3943,156.39,156.34,78.9559]
[1723148398833,6.3943,156.39,156.34,72.56]
[1723148399220,6.3949,156.38,156.34,45.0]
[1723148399609,16.7968803,156.43,156.34,51.3962]
[1723148399808,6.395,156.38,156.34,45.0]
[1723148400013,6.395,156.38,156.33,45.0]
[1723148400213,16.7968803,156.43,156.32,22.389]
[1723148400214,6.3958,156.36,156.32,15.9923]
[1723148400408,6.3958,156.36,156.29,15.2816]
[1723148400409,6.396,156.35,156.3,6.3979]
[1723148401314,6.3956,156.36,156.31,6.3974]
[1723148401722,6.3956,156.36,156.32,6.397]
[1723148401915,16.7975803,156.43,156.29,15.2816]
[1723148402124,6.3949,156.38,156.34,6.3961]
[1723148402325,6.3943,156.39,156.34,6.3961]
[1723148402526,6.3948,156.38,156.34,6.3961]
[1723148402716,6.3948,156.38,156.33,15.9908]
[1723148402717,6.3948,156.38,156.33,22.3874]
[1723148403510,16.7975803,156.43,156.39,6.3939]
[1723148403511,0.8150803,156.43,156.39,6.3939]
[1723148403717,0.8150803,156.43,156.35,22.5198]
[1723148403920,7.2077803,156.43,156.39,6.3941]
[1723148404325,6.3935,156.41,156.37,15.9872]
[1723148404510,0.8150803,156.43,156.36,6.3951]
[1723148404511,6.3938,156.4,156.36,6.3954]
[1723148404703,6.3938,156.4,156.35,22.5198]
[1723148405017,6.3934,156.42,156.37,6.395]
[1723148405713,0.8150803,156.43,156.38,15.9861]
[1723148406223,0.8150803,156.43,156.37,6.3947]
[1723148406224,6.3934,156.41,156.37,6.3947]
[1723148406730,1.59850752,156.4,156.35,15.9893]
[1723148406931,1.59870906,156.42,156.34,6.3963]
[1723148407108,6.3947,156.38,156.32,15.9923]
[1723148407307,6.3942,156.4,156.34,6.3963]
[1723148407523,1.59875975,156.39,156.34,6.3963]
[1723148407725,6.3947,156.38,156.33,6.3967]
[1723148408033,6.3955,156.36,156.31,15.7358]
[1723148408228,1.59892706,156.42,156.32,15.9924]
[1723148408420,6.3951,156.37,156.32,22.3892]
[1723148408825,6.3958,156.36,156.32,22.3894]
[1723148409122,2.53686545,156.42,156.34,6.396]
[1723148409331,6.3943,156.39,156.35,6.3958]
[1723148409526,6.3939,156.4,156.35,6.3958]
[1723148409741,20.0,156.39,156.35,6.3958]
[1723148410603,6.3944,156.39,156.35,6.3958]
[1723148411629,6.3938,156.4,156.35,6.3958]
[1723148411930,20.0,156.42,156.37,6.3949]
[1723148412235,20.0,156.42,156.36,15.9881]
[1723148412421,20.0,156.42,156.37,45.0]
[1723148412621,26.3933,156.42,156.36,15.9881]
[1723148412932,26.3933,156.42,156.37,6.395]
[1723148413544,26.393,156.42,156.38,6.3946]
[1723148414742,0.8150803,156.43,156.38,15.9862]
[1723148415533,0.8150803,156.43,156.39,6.3941]
[1723148415921,0.8150803,156.43,156.38,15.9862]
[1723148415922,7.2079803,156.43,156.38,15.9862]
[1723148416129,7.2077803,156.43,156.38,22.3805]
[1723148416434,0.8150803,156.43,156.4,6.3937]
[1723148417420,0.8150803,156.43,156.38,15.9862]
[1723148417630,0.8150803,156.43,156.39,45.0]
[1723148417825,0.8150803,156.43,156.4,32.5941]
[1723148418234,0.8150803,156.43,156.42,6.393]
[1723148421139,0.8150803,156.43,156.42,51.393]
[1723148421340,0.8150803,156.43,156.42,6.393]
[1723148421542,0.8150803,156.43,156.42,51.393]
[1723148422137,0.8150803,156.43,156.42,78.953]
[1723148423617,15.9707,156.54,156.46,6.3913]
[1723148423846,15.9732,156.52,156.44,15.9804]
[1723148424144,6.3904,156.49,156.44,22.3724]
[1723148424340,6.3904,156.49,156.45,6.3917]
[1723148424537,6.3898,156.5,156.45,6.3917]
[1723148424949,6.3903,156.49,156.45,6.3917]
[1723148426046,6.3898,156.5,156.45,6.3917]
[1723148426339,2.63847229,156.56,156.45,31.9584]
[1723148426542,6.2325,156.57,156.5,6.3896]
[1723148426724,6.3881,156.54,156.5,6.3896]
[1723148427251,6.3878,156.55,156.5,6.3896]
[1723148427544,1.59710824,156.57,156.48,22.3657]
[1723148427749,1.59710824,156.57,156.47,15.3257]
[1723148428046,15.9696,156.55,156.47,6.3909]
[1723148428253,20.0,156.54,156.47,15.9771]
[1723148428429,6.3894,156.51,156.47,22.3679]
[1723148429245,1.59740785,156.53,156.44,15.98]
[1723148429439,6.3898,156.5,156.45,51.3914]
[1723148429623,6.3898,156.5,156.45,45.0]
[1723148429827,6.3898,156.5,156.46,6.3911]
[1723148430336,6.3898,156.5,156.45,6.3916]
[1723148430535,1.59755013,156.49,156.41,15.9829]
[1723148430734,15.9768,156.48,156.41,6.3931]
[1723148430941,6.3921,156.45,156.4,15.9843]
[1723148431150,6.3921,156.45,156.4,22.3778]
[1723148431447,6.3918,156.45,156.41,6.3934]
[1723148431845,6.3922,156.44,156.4,15.9843]
[1723148432556,15.9761,156.49,156.4,15.9843]
[1723148432557,6.3914,156.46,156.4,15.9843]
[1723148432730,6.3914,156.46,156.41,6.3934]
[1723148433126,15.9761,156.49,156.4,15.9843]
[1723148433331,20.0,156.5,156.37,15.9871]
[1723148433332,6.2401,156.46,156.37,15.9871]
[1723148433638,15.9807,156.44,156.35,15.3257]
[1723148433951,6.3941,156.4,156.36,6.3954]
[1723148434134,6.3931,156.42,156.36,15.988]
[1723148434466,6.3931,156.42,156.37,6.395]
[1723148434746,6.3924,156.44,156.38,15.9857]
[1723148434932,20.0,156.43,156.38,15.9857]
[1723148435529,20.0,156.43,156.39,6.3941]
[1723148435729,26.3928,156.43,156.38,22.3802]
[1723148438849,20.0,156.43,156.38,15.9857]
[1723148439049,20.0,156.45,156.38,15.9857]
[1723148439752,6.3927,156.43,156.39,6.3941]
[1723148439934,1.59834123,156.42,156.38,15.9857]
[1723148440249,20.0,156.45,156.38,15.9857]
[1723148440657,6.3934,156.41,156.38,15.9857]
[1723148441172,6.3931,156.42,156.38,15.9857]
[1723148441463,6.3931,156.42,156.38,22.3802]
[1723148441665,21.59847297,156.45,156.38,15.9857]
[1723148441869,20.0,156.45,156.38,15.9857]
[1723148442151,6.3927,156.43,156.38,22.3801]
[1723148442364,6.393,156.42,156.38,15.9857]
[1723148442546,6.393,156.42,156.38,22.3801]
[1723148442869,6.3922,156.44,156.4,6.3938]
[1723148443050,20.0,156.43,156.4,6.3938]
[1723148443650,20.0,156.43,156.41,6.3934]
[1723148443853,20.0,156.44,156.41,6.3934]
[1723148444054,26.3923,156.44,156.38,15.9857]
[1723148444468,6.3927,156.43,156.38,15.9857]
[1723148444645,1.59828818,156.43,156.35,31.3146]
[1723148444847,1.5984348,156.42,156.35,31.3146]
[1723148445872,1.59867355,156.41,156.35,31.3146]
[1723148446240,6.3943,156.39,156.35,37.7102]
[1723148446575,15.9822,156.43,156.36,6.3952]
[1723148446732,21.59866208,156.42,156.36,6.3952]
[1723148447150,6.3938,156.4,156.36,6.3952]
[1723148448151,6.3935,156.41,156.37,6.395]
[1723148448349,20.0,156.42,156.37,15.9874]
[1723148448554,6.3929,156.43,156.39,6.3942]
[1723148448762,20.0,156.42,156.39,6.3942]
[1723148449562,20.0,156.42,156.37,15.9874]
[1723148449767,6.3935,156.41,156.37,22.3824]
[1723148450239,6.3931,156.42,156.38,6.3946]
[1723148450444,20.0,156.41,156.35,15.3257]
[1723148450968,20.0,156.41,156.36,15.9883]
[1723148451143,20.0,156.43,156.36,15.9883]
[1723148451763,6.3933,156.42,156.36,15.9883]
[1723148451950,20.0,156.43,156.36,22.3834]
[1723148452273,20.0,156.43,156.36,15.9883]
[1723148452571,20.0,156.45,156.36,15.9883]
[1723148452752,6.3933,156.42,156.38,6.3946]
[1723148452951,20.0,156.41,156.38,6.3946]
[1723148454073,6.3923,156.44,156.39,6.3938]
[1723148454264,15.9772,156.48,156.37,27.56]
[1723148454448,6.3926,156.43,156.39,6.3941]
[1723148454946,6.3922,156.44,156.4,6.3938]
[1723148455348,6.3917,156.46,156.41,6.3933]
[1723148455570,6.3917,156.46,156.37,27.56]
[1723148455759,6.3915,156.46,156.42,6.3929]
[1723148456072,6.3915,156.46,156.41,15.9831]
[1723148456073,6.3915,156.46,156.41,22.3764]
[1723148457149,1.59797925,156.49,156.38,67.0393]
[1723148457353,20.0,156.45,156.38,22.0393]
[1723148457580,6.66836593,156.52,156.39,47.4204]
[1723148457881,6.3907,156.48,156.43,22.3735]
[1723148458198,20.0,156.47,156.43,22.3733]
[1723148458684,6.3915,156.46,156.42,6.3929]
[1723148458983,6.3915,156.46,156.41,6.3931]
[1723148459188,20.0,156.47,156.4,60.9841]
[1723148459393,6.3915,156.46,156.41,6.3931]
[1723148459558,6.3915,156.46,156.42,6.3929]
[1723148459753,20.0,156.49,156.42,6.3929]
[1723148459954,6.3906,156.48,156.44,6.3921]
[1723148460278,26.391,156.47,156.43,6.3924]
[1723148460481,6.391,156.47,156.42,15.9822]
[1723148460663,6.391,156.47,156.42,22.3749]
[1723148460866,20.0,156.49,156.44,15.9801]
[1723148461063,20.0,156.53,156.44,15.9801]
[1723148461476,6.3904,156.49,156.44,22.3721]
[1723148461678,26.3907,156.48,156.44,22.3721]
[1723148461983,26.3907,156.48,156.44,15.9801]
[1723148461984,20.0,156.48,156.44,15.9801]
[1723148463399,20.0,156.48,156.45,6.3917]
[1723148463777,2.59650903,156.54,156.46,1.27556997]
[1723148463969,6.3889,156.52,156.48,6.3905]
[1723148464170,6.3889,156.52,156.49,1.27480507]
[1723148464607,21.877,156.56,156.49,1.27480507]
[1723148464608,21.877,156.56,156.49,7.66480507]
[1723148464902,6.3886,156.53,156.49,6.39]
[1723148465091,6.3882,156.54,156.49,6.3901]
[1723148465294,6.3886,156.53,156.49,6.3901]
[1723148465480,6.3889,156.52,156.48,22.3664]
[1723148466003,33.53262369,156.57,156.46,16.2824]
[1723148466173,6.391,156.47,156.46,16.2824]
[1723148466385,6.391,156.47,156.44,1.0]
[1723148466704,6.3907,156.48,156.44,1.0]
[1723148466903,6.3907,156.48,156.44,7.3921]
[1723148467283,6.3902,156.49,156.45,6.3917]
[1723148467588,6.3902,156.49,156.44,1.0]
[1723148467589,6.3906,156.48,156.44,7.3921]
[1723148470303,5.75402149,156.48,156.44,7.3921]
[1723148470804,15.9727,156.52,156.44,7.3921]
[1723148470998,6.3902,156.49,156.45,6.3915]
[1723148471618,6.3902,156.49,156.44,7.3921]
[1723148471979,15.9748,156.5,156.44,1.0]
[1723148472278,6.3918,156.45,156.44,1.0]
[1723148473795,20.0,156.45,156.44,1.0]
[1723148473984,26.3918,156.45,156.44,1.0]
[1723148474990,20.0,156.45,156.44,1.0]
[1723148475388,22.2492,156.52,156.44,1.0]
[1723148476382,6.3905,156.49,156.45,6.3916]
[1723148476797,6.3897,156.51,156.46,6.3913]
[1723148477108,26.3899,156.5,156.46,6.3913]
[1723148477502,26.3899,156.5,156.45,22.3704]
[1723148478008,26.3899,156.5,156.46,6.3913]
[1723148478178,20.0,156.5,156.46,7.66659505]
[1723148478382,26.3897,156.5,156.46,6.3913]
[1723148479181,6.3904,156.49,156.45,15.9788]
[1723148479620,6.3904,156.49,156.45,22.3704]
[1723148479823,26.3899,156.5,156.45,22.3704]
[1723148480410,6.3902,156.49,156.45,22.3704]
[1723148481220,26.3898,156.5,156.46,6.3913]
[1723148482214,26.3898,156.5,156.46,6.3911]
[1723148482215,20.0,156.5,156.46,6.3911]
[1723148482715,6.3886,156.53,156.48,6.3902]
[1723148483022,26.389,156.52,156.47,15.9769]
[1723148483518,26.389,156.52,156.44,23.3462]
[1723148483715,26.389,156.52,156.45,45.0]
[1723148483925,6.3894,156.51,156.45,45.0]
[1723148485414,6.3894,156.51,156.47,22.3676]
[1723148486116,20.0,156.52,156.49,22.365]
[1723148486301,20.0,156.55,156.49,22.365]
[1723148486509,6.3887,156.53,156.49,22.365]
[1723148486817,26.389,156.52,156.49,15.975]
[1723148487616,26.389,156.52,156.48,6.3904]
[1723148487912,20.0,156.52,156.46,15.978]
[1723148488210,6.3902,156.49,156.46,15.978]
[1723148488519,6.3899,156.5,156.46,15.978]
[1723148488827,20.0,156.54,156.45,6.3917]
[1723148488828,6.3903,156.49,156.45,6.3917]
[1723148489317,6.3907,156.48,156.44,29.7382]
[1723148490289,6.3907,156.48,156.44,23.2404]
[1723148490696,6.3907,156.48,156.44,16.8484]
[1723148490918,35.971,156.54,156.45,15.9789]
[1723148491221,35.971,156.54,156.47,6.3906]
[1723148491519,6.3892,156.52,156.47,22.368]
[1723148491728,20.0,156.51,156.47,22.368]
[1723148492415,6.3894,156.51,156.47,22.368]
[1723148492617,20.0,156.5,156.44,32.8285]
[1723148492790,26.3898,156.5,156.44,32.8285]
[1723148492990,20.0,156.5,156.46,15.978]
[1723148493206,8.71353773,156.56,156.46,15.978]
[1723148493401,6.389,156.52,156.48,6.3904]
[1723148493606,6.389,156.52,156.47,6.3909]
[1723148493807,6.3886,156.53,156.48,6.3905]
[1723148494521,20.0,156.52,156.48,6.3905]
[1723148495395,20.0,156.52,156.47,6.3909]
[1723148495591,20.0,156.55,156.47,6.3909]
[1723148495794,20.0,156.55,156.44,16.8484]
[1723148495795,60.9708,156.54,156.44,16.8484]
[1723148496013,6.3898,156.5,156.45,6.3917]
[1723148496218,6.3898,156.5,156.46,1.27535904]
[1723148496417,6.3894,156.51,156.46,22.3696]
[1723148497431,6.3892,156.52,156.47,6.3909]
[1723148497722,26.3895,156.51,156.46,22.3696]
[1723148498214,26.3895,156.51,156.47,6.3909]
[1723148498620,6.3898,156.5,156.46,22.3696]
[1723148498824,6.3898,156.5,156.46,15.9783]
[1723148499722,6.3902,156.49,156.46,15.9783]
[1723148500603,20.0,156.51,156.44,1.0]
[1723148500604,6.3911,156.47,156.44,1.0]
[1723148500831,6.3906,156.48,156.44,7.3922]
[1723148501009,20.0,156.51,156.44,7.3922]
[1723148501215,6.3902,156.49,156.44,7.3922]
[1723148501408,20.0,156.48,156.44,7.3922]
[1723148501609,20.0,156.48,156.45,6.3917]
[1723148502115,26.3907,156.48,156.44,7.3922]
[1723148502434,26.3907,156.48,156.44,1.0]
[1723148502815,6.3911,156.47,156.44,1.0]
[1723148503222,20.0,156.48,156.46,6.3913]
[1723148503514,15.9693,156.55,156.44,1.0]
[1723148503515,35.9693,156.55,156.44,1.0]
[1723148503725,6.389,156.52,156.47,6.3909]
[1723148503925,20.0,156.51,156.45,15.979]
[1723148504121,38.5827036,156.55,156.45,15.979]
[1723148504122,6.39,156.5,156.46,6.3913]
[1723148504432,20.0,156.49,156.47,6.3906]
[1723148504630,38.5827036,156.55,156.48,6.3905]
[1723148505014,6.3886,156.53,156.49,6.3901]
[1723148505214,6.1625,156.56,156.49,6.3901]
[1723148505412,6.3881,156.54,156.49,6.3901]
[1723148505719,6.3881,156.54,156.48,1.2746258]
[1723148505720,6.3885,156.53,156.48,6.3905]
[1723148505925,6.3885,156.53,156.47,31.1045]
[1723148506128,6.3881,156.54,156.49,6.3898]
[1723148506327,32.9039803,156.58,156.47,31.1045]
[1723148506521,6.3889,156.52,156.47,31.1045]
[1723148506732,6.3885,156.53,156.48,6.3904]
[1723148507038,20.0,156.52,156.48,6.3904]
[1723148508137,20.0,156.52,156.49,6.3901]
[1723148508333,20.0,156.52,156.5,6.3896]
[1723148508541,6.3881,156.55,156.5,6.3896]
[1723148508831,20.0,156.54,156.5,6.3896]
[1723148509031,26.3881,156.54,156.5,6.3896]
[1723148509239,26.3881,156.54,156.49,22.3649]
[1723148510035,0.8150803,156.58,156.51,15.9727]
[1723148510340,0.8150803,156.58,156.52,7.66259105]
[1723148510341,6.3873,156.56,156.52,7.66259105]
[1723148510645,0.8150803,156.58,156.52,7.66259105]
[1723148510646,6.387,156.57,156.52,7.66259105]
[1723148516170,7.2016803,156.58,156.53,6.3882]
[1723148516330,20.0,156.57,156.54,1.27335559]
[1723148516759,20.0,156.57,156.55,1.2733766]
[1723148516941,20.0,156.57,156.51,15.9727]
[1723148516942,20.0,156.57,156.52,1.27335057]
[1723148517144,0.8150803,156.58,156.54,6.388]
[1723148517333,0.8150803,156.58,156.55,6.3877]
[1723148517661,7.2015803,156.58,156.54,6.388]
[1723148517862,0.8150803,156.58,156.55,6.3876]
[1723148518074,0.8150803,156.58,156.55,1.27310499]
[1723148518359,0.8150803,156.58,156.54,45.0]
[1723148518864,0.8150803,156.58,156.55,7.66019549]
[1723148519158,0.8150803,156.58,156.54,45.0]
[1723148519159,0.8150803,156.58,156.56,6.3873]
[1723148519367,0.8150803,156.58,156.55,6.3875]
[1723148519859,0.8150803,156.58,156.56,28.83285868]
[1723148520061,0.8150803,156.58,156.57,78.9469]
[1723148520275,0.8150803,156.58,156.57,51.3869]
[1723148521465,0.8150803,156.58,156.57,78.9469]
[1723148521674,6.3826,156.68,156.63,6.3841]
[1723148521840,6.3827,156.68,156.64,15.5775]
[1723148522241,2.5972651,156.72,156.64,15.5775]
[1723148522444,0.8150803,156.74,156.66,6.3828]
[1723148522667,15.9517,156.73,156.64,15.5775]
[1723148523183,17.54730557,156.73,156.65,6.3835]
[1723148523470,6.3821,156.69,156.64,15.5775]
[1723148523654,6.3817,156.7,156.65,22.3423]
[1723148524753,6.3821,156.69,156.65,15.9588]
[1723148525155,20.0,156.68,156.65,15.9588]
[1723148525561,20.0,156.68,156.65,22.3422]
[1723148525757,0.8150803,156.74,156.65,15.9588]
[1723148525999,3.4205842,156.74,156.65,15.9588]
[1723148526363,0.8150803,156.74,156.66,45.0]
[1723148527086,7.1950803,156.74,156.69,6.3819]
[1723148527290,0.8150803,156.74,156.7,45.0]
[1723148527585,0.8150803,156.74,156.71,15.9523]
[1723148527984,0.8150803,156.74,156.69,6.3819]
[1723148528190,6.3804,156.73,156.68,22.3381]
[1723148528393,7.1950803,156.74,156.69,6.382]
[1723148529273,7.1950803,156.74,156.7,6.3816]
[1723148529458,0.8150803,156.74,156.68,15.9558]
[1723148529662,0.8150803,156.74,156.65,22.3421]
[1723148529874,1.59562935,156.73,156.64,15.5775]
[1723148530083,6.3824,156.68,156.64,15.5775]
[1723148530310,37.54742935,156.73,156.63,1.0]
[1723148530311,6.3835,156.66,156.63,1.0]
[1723148530498,6.3828,156.67,156.63,1.0]
[1723148530695,20.0,156.66,156.63,7.3844]
[1723148530872,20.0,156.66,156.63,1.0]
[1723148531304,6.3827,156.68,156.63,7.3844]
[1723148531606,26.3828,156.67,156.63,7.3844]
[1723148531781,6.3836,156.65,156.63,1.0]
[1723148531981,22.63228708,156.7,156.63,1.0]
[1723148531982,20.0,156.64,156.63,1.0]